bitfinex-derivatives/quotes_SOLF0:USTF0_20240911
["timestamp","ask_amount","ask_price","bid_price","bid_amount"]
[1726033356250,10.5,131.72,131.69,6.4109685]
[1726033356547,10.5,131.72,131.65,14.33049479]
[1726033356746,10.5,131.72,131.66,12.50918598]
[1726033356948,10.5,131.72,131.67,6.41085168]
[1726033357146,10.5,131.72,131.68,6.41085168]
[1726033357342,10.5,131.72,131.69,6.41085168]
[1726033357548,10.5,131.72,131.66,6.0981164]
[1726033357750,10.5,131.72,131.67,6.4106351]
[1726033357948,10.5,131.72,131.65,14.33049479]
[1726033357949,10.5,131.72,131.68,6.4106351]
[1726033358150,10.5,131.72,131.69,6.4106351]
[1726033358346,10.5,131.72,131.65,14.33049479]
[1726033358547,10.5,131.72,131.66,12.50889891]
[1726033358751,10.5,131.72,131.67,6.41073615]
[1726033359347,3.7963,131.7,131.68,6.41073615]
[1726033359645,3.7963,131.7,131.69,6.41073615]
[1726033362450,3.7963,131.7,131.66,10.5]
[1726033362651,3.7963,131.7,131.67,6.41067412]
[1726033362953,3.7963,131.7,131.68,6.41067601]
[1726033363252,3.7963,131.7,131.69,6.41067601]
[1726033365249,3.7957,131.72,131.69,6.41067601]
[1726033365449,3.7957,131.72,131.7,6.41067601]
[1726033365645,3.7957,131.72,131.67,10.5]
[1726033365952,3.7957,131.72,131.68,6.41043853]
[1726033366152,3.7957,131.72,131.69,6.41043853]
[1726033366347,10.5,131.74,131.7,6.41043853]
[1726033366550,10.5,131.74,131.71,6.41043853]
[1726033366748,10.5,131.74,131.72,6.41043853]
[1726033366954,10.5,131.74,131.69,10.5]
[1726033367155,10.5,131.74,131.7,6.40981132]
[1726033367456,10.5,131.74,131.71,6.40981132]
[1726033367650,10.5,131.74,131.69,10.5]
[1726033367953,10.5,131.74,131.7,6.40978766]
[1726033368153,10.5,131.74,131.71,6.40978766]
[1726033368343,10.5,131.74,131.69,10.5]
[1726033368750,10.5,131.74,131.7,6.40978766]
[1726033368951,10.5,131.74,131.71,6.40978766]
[1726033369247,10.5,131.74,131.72,6.40969786]
[1726033369451,10.5,131.74,131.69,14.2963]
[1726033369654,1.3636,131.77,131.7,6.40969786]
[1726033369851,10.5,131.75,131.71,6.40969786]
[1726033370050,10.5,131.75,131.72,6.40969786]
[1726033370252,10.5,131.75,131.69,10.5]
[1726033370444,10.5,131.75,131.7,6.40969622]
[1726033370645,10.5,131.75,131.71,6.40969622]
[1726033370845,10.5,131.75,131.72,6.40969622]
[1726033371049,10.5,131.75,131.68,14.2967]
[1726033371245,10.5,131.75,131.69,10.20624276]
[1726033371449,10.5,131.75,131.7,6.40974276]
[1726033371755,10.5,131.75,131.71,6.40974276]
[1726033371952,10.5,131.75,131.69,3.7965]
[1726033372154,10.5,131.75,131.7,6.40970896]
[1726033372352,10.5,131.75,131.71,6.40970896]
[1726033372554,10.5,131.75,131.69,3.7965]
[1726033372755,10.5,131.75,131.7,6.40974276]
[1726033373060,10.5,131.75,131.71,6.40974276]
[1726033373259,10.5,131.76,131.71,6.40974276]
[1726033373655,10.5,131.76,131.72,6.40974276]
[1726033373954,10.5,131.76,131.7,14.2961]
[1726033374153,10.5,131.76,131.71,6.40942246]
[1726033374354,10.5,131.76,131.72,6.40942246]
[1726033374556,10.5,131.76,131.7,14.2961]
[1726033374755,10.5,131.76,131.71,6.40941562]
[1726033374956,10.5,131.76,131.72,6.40941562]
[1726033375262,10.5,131.76,131.7,14.2961]
[1726033375460,10.5,131.76,131.71,6.40928042]
[1726033375653,10.5,131.76,131.72,6.40928042]
[1726033375854,10.5,131.76,131.73,6.40928042]
[1726033376162,10.5,131.76,131.7,14.2961]
[1726033376359,1.3636,131.77,131.71,20.70474851]
[1726033376562,1.3636,131.77,131.72,10.22111159]
[1726033376762,1.3636,131.77,131.73,6.40894851]
[1726033377065,1.3636,131.77,131.72,3.81216308]
[1726033377264,1.3636,131.77,131.73,6.40867753]
[1726033377559,1.3636,131.77,131.72,3.81216308]
[1726033377757,1.3636,131.77,131.73,6.40867753]
[1726033377956,1.3636,131.77,131.72,3.81216308]
[1726033378160,1.3636,131.77,131.73,6.40867753]
[1726033378359,1.3636,131.77,131.72,3.81216308]
[1726033378566,1.3636,131.77,131.73,6.40871382]
[1726033378858,1.3636,131.77,131.72,3.81216308]
[1726033379058,1.3636,131.77,131.73,6.40891657]
[1726033379359,1.3636,131.77,131.72,3.81216308]
[1726033379664,1.3636,131.77,131.73,6.40881519]
[1726033379864,1.3636,131.77,131.72,3.81216308]
[1726033380066,1.3636,131.77,131.73,6.40881519]
[1726033380260,1.3636,131.77,131.72,3.81216308]
[1726033380464,1.3636,131.77,131.73,6.40868002]
[1726033380666,1.3636,131.77,131.72,3.81216308]
[1726033380855,1.3636,131.77,131.73,6.40868002]
[1726033381061,1.3636,131.77,131.72,7.60786308]
[1726033381362,2.6363,131.78,131.73,6.40868002]
[1726033381562,13.1363,131.78,131.72,3.81216308]
[1726033381760,13.1363,131.78,131.73,6.40858776]
[1726033381961,90.23584269,131.8,131.73,6.40858776]
[1726033381962,100.73584269,131.8,131.74,6.40853989]
[1726033382163,100.73584269,131.8,131.75,6.40853989]
[1726033382359,100.73584269,131.8,131.74,3.7951]
[1726033382554,100.73584269,131.8,131.75,6.40790636]
[1726033382756,100.73584269,131.8,131.73,10.5]
[1726033382960,11.8145,131.8,131.74,10.20288309]
[1726033383155,11.8145,131.8,131.75,6.40788309]
[1726033383361,11.8145,131.8,131.76,6.40788309]
[1726033383563,11.8145,131.8,131.73,10.5]
[1726033383564,11.8145,131.8,131.75,3.7948]
[1726033383764,11.8145,131.8,131.76,6.40752578]
[1726033383964,11.8145,131.8,131.75,3.7948]
[1726033384166,11.8145,131.8,131.76,6.40600855]
[1726033384362,11.8145,131.8,131.74,3.795]
[1726033384666,11.8145,131.8,131.75,6.40625186]
[1726033384866,11.8145,131.8,131.74,3.795]
[1726033385067,11.8145,131.8,131.75,6.40625186]
[1726033385270,11.8145,131.8,131.74,3.795]
[1726033385471,11.8145,131.8,131.75,6.4062582]
[1726033385664,11.8145,131.8,131.74,3.795]
[1726033385865,11.8145,131.8,131.75,6.4062582]
[1726033386070,11.8145,131.8,131.74,3.795]
[1726033386369,10.5,131.77,131.7,10.5]
[1726033386558,10.5,131.77,131.71,6.40720689]
[1726033386760,10.5,131.77,131.72,10.12770324]
[1726033387063,10.5,131.77,131.73,6.40720689]
[1726033387265,10.5,131.77,131.72,3.83359519]
[1726033387464,10.5,131.77,131.7,10.5]
[1726033387661,10.5,131.77,131.71,6.40733426]
[1726033387861,10.5,131.75,131.72,6.40733426]
[1726033388056,10.5,131.75,131.71,3.82107082]
[1726033388267,10.5,131.75,131.72,6.40764911]
[1726033388474,10.5,131.75,131.71,3.82107082]
[1726033389271,10.5,131.75,131.72,6.40772386]
[1726033389464,10.5,131.75,131.71,3.82107082]
[1726033389673,10.5,131.75,131.72,6.40772386]
[1726033389864,10.5,131.75,131.7,10.5]
[1726033390065,10.5,131.75,131.71,6.407694]
[1726033390364,10.5,131.75,131.72,6.407694]
[1726033390564,10.5,131.75,131.7,10.5]
[1726033390769,2.577,131.76,131.71,16.90715381]
[1726033390971,2.577,131.76,131.72,6.40715381]
[1726033391174,2.577,131.76,131.71,10.5]
[1726033391370,4.1122,131.8,131.72,10.18841455]
[1726033391564,10.5,131.79,131.73,6.40728648]
[1726033391770,10.5,131.79,131.72,14.28112807]
[1726033392073,10.5,131.79,131.73,6.40683363]
[1726033392268,10.5,131.79,131.72,14.28112807]
[1726033392476,10.5,131.79,131.73,6.40683363]
[1726033392664,10.5,131.79,131.72,14.28112807]
[1726033392863,10.5,131.79,131.73,6.40696878]
[1726033393174,10.5,131.79,131.72,14.28112807]
[1726033393377,10.5,131.79,131.73,6.40703885]
[1726033393586,10.5,131.79,131.72,14.28112807]
[1726033393775,10.5,131.79,131.73,6.40693748]
[1726033393972,10.5,131.79,131.72,14.28112807]
[1726033394170,10.5,131.79,131.73,6.40697127]
[1726033394474,10.5,131.79,131.72,14.28112807]
[1726033394678,10.5,131.79,131.73,6.40697127]
[1726033394875,10.5,131.79,131.72,14.28112807]
[1726033395179,10.5,131.79,131.73,6.40697127]
[1726033395374,10.5,131.79,131.72,14.28112807]
[1726033395572,10.5,131.79,131.73,6.40697127]
[1726033395869,10.5,131.79,131.72,18.07662807]
[1726033396069,10.5,131.79,131.73,6.40697127]
[1726033396277,10.5,131.79,131.72,18.07662807]
[1726033396463,10.5,131.79,131.73,6.40674723]
[1726033396668,10.5,131.79,131.72,18.07662807]
[1726033396971,10.5,131.79,131.73,6.40674723]
[1726033397175,10.5,131.79,131.73,3.7954]
[1726033397367,10.5,131.79,131.74,6.40659157]
[1726033397565,10.5,131.79,131.72,14.28112807]
[1726033397770,10.5,131.79,131.73,6.40688672]
[1726033397970,10.5,131.77,131.72,3.78112807]
[1726033398272,10.5,131.77,131.73,6.40691656]
[1726033398471,10.5,131.77,131.72,3.78112807]
[1726033398672,10.5,131.77,131.73,6.40691656]
[1726033398879,10.5,131.77,131.72,3.78112807]
[1726033399069,10.5,131.77,131.73,6.40691656]
[1726033399272,10.5,131.77,131.72,3.78112807]
[1726033399467,10.5,131.77,131.73,6.40691656]
[1726033399666,10.5,131.79,131.72,14.28112807]
[1726033399871,10.5,131.79,131.73,6.40691656]
[1726033400077,10.5,131.79,131.72,14.28112807]
[1726033400278,10.5,131.79,131.73,6.40664628]
[1726033400467,10.5,131.79,131.72,14.28112807]
[1726033400673,10.5,131.79,131.73,6.40691656]
[1726033400873,10.5,131.79,131.72,14.28112807]
[1726033401078,10.5,131.79,131.73,6.40664628]
[1726033401275,10.5,131.79,131.72,14.28112807]
[1726033401476,10.5,131.79,131.73,6.40664378]
[1726033401674,10.5,131.79,131.72,14.28112807]
[1726033401873,2.7977,131.8,131.75,10.5]
[1726033402075,11.9174,131.85,131.77,10.5]
[1726033402275,14.6759,131.85,131.77,10.5]
[1726033402476,14.6759,131.85,131.77,14.2941]
[1726033403076,10.5,131.83,131.77,10.5]
[1726033403374,10.5,131.83,131.76,14.2944]
[1726033403776,10.5,131.83,131.77,6.40522831]
[1726033403976,10.5,131.83,131.76,14.2944]
[1726033404978,4.1759,131.85,131.73,6.09338137]
[1726033404979,10.5,131.82,131.73,6.09338137]
[1726033405177,4.1759,131.85,131.74,6.40573487]
[1726033405178,10.5,131.79,131.74,6.40573487]
[1726033405382,10.5,131.79,131.72,18.07672807]
[1726033405576,10.5,131.79,131.73,6.40616234]
[1726033405775,10.5,131.79,131.74,6.40616234]
[1726033406077,10.5,131.79,131.73,14.2952]
[1726033406289,10.5,131.79,131.74,6.40624398]
[1726033406485,10.5,131.79,131.73,10.5]
[1726033406783,10.5,131.79,131.74,6.40623765]
[1726033407083,10.5,131.79,131.73,10.5]
[1726033407281,10.5,131.79,131.74,10.20133515]
[1726033407470,10.5,131.79,131.74,3.7951]
[1726033407979,42.66885953,131.85,131.78,10.5]
[1726033408380,42.66885953,131.85,131.79,14.26631754]
[1726033408680,42.66885953,131.85,131.79,10.5]
[1726033409082,42.66885953,131.85,131.79,14.23548827]
[1726033409385,32.16885953,131.85,131.81,10.5]
[1726033411579,4.1759,131.85,131.81,10.5]
[1726033411783,4.1759,131.85,131.79,18.02898827]
[1726033411982,4.1759,131.85,131.79,14.2935]
[1726033411983,14.6759,131.85,131.79,14.2935]
[1726033412372,14.6759,131.85,131.79,18.12278679]
[1726033415482,14.6759,131.85,131.79,14.2935]
[1726033416484,14.6759,131.85,131.79,18.14668664]
[1726033417890,4.1759,131.85,131.79,18.14668664]
[1726033418189,4.1759,131.85,131.8,3.7934]
[1726033418390,4.1759,131.85,131.79,14.35318664]
[1726033419282,4.1759,131.85,131.79,18.14678664]
[1726033420392,4.1759,131.85,131.8,3.7933]
[1726033421291,10.5,131.84,131.79,3.85318664]
[1726033421489,10.5,131.84,131.78,10.5]
[1726033422081,10.5,131.84,131.79,3.82359332]
[1726033423391,10.5,131.84,131.79,3.7937]
[1726033423792,14.6759,131.85,131.79,18.04749757]
[1726033424988,14.6759,131.85,131.79,3.75379757]
[1726033425188,10.5,131.84,131.78,14.2938]
[1726033425693,10.5,131.84,131.79,3.86911229]
[1726033426289,10.5,131.84,131.79,7.66271229]
[1726033426885,4.1759,131.85,131.79,18.16271229]
[1726033428294,10.5,131.84,131.79,3.86911229]
[1726033428488,10.5,131.84,131.78,10.5]
[1726033428997,14.6759,131.85,131.79,3.81107738]
[1726033431795,4.1759,131.85,131.78,10.5]
[1726033432586,2.7585,131.85,131.79,10.5]
[1726033432886,2.7585,131.85,131.79,14.2936]
[1726033433088,2.7585,131.85,131.8,3.70703391]
[1726033433389,2.7585,131.85,131.81,3.78405038]
[1726033433588,2.7585,131.85,131.81,3.82426587]
[1726033433789,2.7585,131.85,131.79,14.2936]
[1726033434200,13.2585,131.85,131.73,12.49625277]
[1726033434395,3.793,131.82,131.78,10.5]
[1726033434595,3.793,131.82,131.79,3.86561954]
[1726033435194,3.7927,131.83,131.79,3.86561954]
[1726033435792,3.7928,131.82,131.79,3.86561954]
[1726033437395,3.7926,131.83,131.79,10.5]
[1726033437596,3.7926,131.83,131.8,3.78528072]
[1726033439597,3.7926,131.83,131.79,10.5]
[1726033439598,3.7928,131.82,131.79,10.5]
[1726033439998,3.7928,131.82,131.79,14.2966616]
[1726033442200,3.7926,131.83,131.79,14.2966616]
[1726033442600,3.7929,131.82,131.79,14.2966616]
[1726033445197,3.7926,131.83,131.79,14.2966616]
[1726033446109,2.7585,131.85,131.79,3.7966616]
[1726033446402,2.7585,131.85,131.79,10.5]
[1726033446602,2.7585,131.85,131.79,14.32444427]
[1726033447200,10.5,131.82,131.74,6.09204444]
[1726033447404,10.5,131.8,131.75,6.40545592]
[1726033447606,10.5,131.8,131.73,3.71481678]
[1726033447806,10.5,131.8,131.74,16.90609219]
[1726033448008,10.5,131.8,131.74,14.27077798]
[1726033448400,3.7945,131.76,131.74,14.27077798]
[1726033448706,10.5,131.8,131.74,14.27077798]
[1726033449105,3.7942,131.78,131.74,14.27077798]
[1726033449302,3.7942,131.78,131.75,6.40601436]
[1726033449507,3.7944,131.77,131.74,14.27077798]
[1726033454016,3.7944,131.77,131.75,6.40601386]
[1726033454320,3.7944,131.77,131.74,14.27077798]
[1726033454919,3.7944,131.77,131.75,6.40614262]
[1726033455121,3.7944,131.77,131.74,14.27077798]
[1726033455323,3.7944,131.77,131.75,6.40613578]
[1726033455630,3.7944,131.77,131.74,14.27077798]
[1726033455922,3.7944,131.77,131.75,6.40613578]
[1726033456124,3.7944,131.77,131.74,14.27077798]
[1726033456419,3.7944,131.77,131.75,6.40614895]
[1726033456615,2.6498,131.8,131.74,3.77077798]
[1726033456816,2.6498,131.8,131.73,10.5]
[1726033457014,2.6498,131.8,131.73,14.34524893]
[1726033457220,3.7944,131.77,131.74,6.40614845]
[1726033457526,3.7944,131.77,131.75,6.40614845]
[1726033457721,3.7944,131.77,131.73,14.34524893]
[1726033457922,3.7944,131.77,131.74,6.40614895]
[1726033458125,3.7944,131.77,131.75,6.40614895]
[1726033458426,3.7944,131.77,131.73,14.34524893]
[1726033458615,3.7944,131.77,131.74,6.40618905]
[1726033458819,3.7944,131.77,131.75,6.40618905]
[1726033459023,3.7944,131.77,131.73,14.34524893]
[1726033459228,3.7944,131.77,131.74,6.40618905]
[1726033459419,3.7944,131.77,131.75,6.40618905]
[1726033459620,3.7944,131.77,131.73,14.34524893]
[1726033459925,3.7944,131.77,131.74,6.40609417]
[1726033460123,3.7944,131.77,131.75,6.40609417]
[1726033460316,3.7944,131.77,131.73,14.34524893]
[1726033460624,3.7944,131.77,131.74,6.40612794]
[1726033460826,3.7944,131.77,131.75,6.40612794]
[1726033461028,3.7944,131.77,131.73,14.34524893]
[1726033461233,2.6498,131.8,131.75,10.5]
[1726033461436,2.6498,131.8,131.76,6.40614895]
[1726033461626,2.6498,131.8,131.75,10.5]
[1726033461833,3.7937,131.79,131.76,6.40585153]
[1726033462030,3.7937,131.79,131.75,10.5]
[1726033462230,3.7937,131.79,131.76,6.40585153]
[1726033462535,3.7937,131.79,131.76,3.8190625]
[1726033463833,3.7937,131.79,131.75,10.5]
[1726033464332,3.7937,131.79,131.76,6.40581776]
[1726033464531,3.7937,131.79,131.75,10.5]
[1726033464736,3.7937,131.79,131.76,6.40581776]
[1726033464932,3.794,131.78,131.75,14.29667577]
[1726033465234,13.1498,131.8,131.76,6.40583]
[1726033465440,13.1498,131.8,131.74,10.5]
[1726033465631,13.1498,131.8,131.75,6.40583621]
[1726033465830,3.7938,131.79,131.76,6.40583621]
[1726033466033,3.7938,131.79,131.77,6.40583621]
[1726033466234,3.7938,131.79,131.74,14.21432908]
[1726033466430,3.7938,131.79,131.75,6.40558239]
[1726033466630,3.7938,131.79,131.76,6.40558239]
[1726033466831,3.7938,131.79,131.75,10.5]
[1726033467132,3.7938,131.79,131.77,6.40553455]
[1726033467332,3.7938,131.79,131.76,6.40553455]
[1726033467534,3.7938,131.79,131.77,6.40548712]
[1726033467738,3.7938,131.79,131.75,10.5]
[1726033467938,3.7938,131.79,131.76,6.40549395]
[1726033468140,3.7938,131.79,131.77,6.40549395]
[1726033468332,3.7938,131.79,131.78,6.40549395]
[1726033469036,16.9433,131.8,131.78,6.40549395]
[1726033469338,13.1498,131.8,131.75,10.5]
[1726033469539,13.1498,131.8,131.76,6.40549395]
[1726033469739,13.1498,131.8,131.77,6.40549395]
[1726033469740,3.7938,131.79,131.77,6.40549395]
[1726033470037,3.7938,131.79,131.78,6.40549395]
[1726033470234,3.7938,131.79,131.75,10.5]
[1726033470441,3.7938,131.79,131.78,6.40552772]
[1726033474830,10.5,131.79,131.74,14.21432908]
[1726033475030,10.5,131.79,131.75,6.40604391]
[1726033475235,3.7947,131.76,131.71,10.5]
[1726033475432,3.7947,131.76,131.72,12.50097926]
[1726033475742,3.7947,131.76,131.71,14.327034]
[1726033475743,3.7947,131.76,131.73,6.40660835]
[1726033476042,3.7947,131.76,131.74,6.40660835]
[1726033476235,3.7947,131.76,131.75,6.40660835]
[1726033476430,3.7944,131.77,131.75,6.40660835]
[1726033476638,3.7944,131.77,131.72,10.5]
[1726033476842,3.7944,131.77,131.76,6.40608726]
[1726033478142,3.7944,131.77,131.76,2.13528726]
[1726033478341,3.7944,131.77,131.49,3.26779653]
[1726033478342,3.7944,131.77,131.72,16.5945729]
[1726033478536,3.7944,131.77,131.72,10.5]
[1726033479241,3.7942,131.78,131.73,14.34735084]
[1726033479445,3.7942,131.78,131.73,10.5]
[1726033479845,3.7943,131.77,131.73,10.5]
[1726033480348,3.7941,131.78,131.73,10.5]
[1726033480647,3.7941,131.78,131.74,3.84317595]
[1726033480850,1.2856,131.79,131.74,3.84317595]
[1726033481241,3.7943,131.77,131.74,3.84317595]
[1726033482944,3.7946,131.76,131.73,10.5]
[1726033483545,3.7946,131.76,131.73,14.32524561]
[1726033485538,3.7948,131.75,131.73,3.82524561]
[1726033485745,3.7948,131.75,131.72,10.5]
[1726033486353,3.7948,131.75,131.72,14.30588977]
[1726033487444,3.7951,131.74,131.72,3.80588977]
[1726033487646,10.5,131.77,131.7,10.5]
[1726033487849,10.5,131.77,131.71,6.09476188]
[1726033488050,3.795,131.75,131.71,3.8009565]
[1726033488352,3.795,131.75,131.7,10.5]
[1726033488547,3.795,131.75,131.71,16.59489453]
[1726033488749,3.795,131.75,131.71,10.5]
[1726033489339,3.795,131.75,131.71,14.23453275]
[1726033489750,10.5,131.77,131.71,14.23453275]
[1726033490338,3.795,131.75,131.71,14.23453275]
[1726033491644,3.7952,131.74,131.71,3.73453275]
[1726033491849,3.7952,131.74,131.7,10.5]
[1726033492049,10.5,131.77,131.71,6.09492698]
[1726033492238,3.795,131.75,131.72,3.79146739]
[1726033492442,3.795,131.75,131.7,10.5]
[1726033492643,10.5,131.77,131.71,6.09492698]
[1726033492953,3.795,131.75,131.71,3.86396416]
[1726033493250,3.795,131.75,131.7,10.5]
[1726033493451,3.795,131.75,131.71,6.09492014]
[1726033493650,3.795,131.75,131.71,3.70417672]
[1726033493852,3.795,131.75,131.7,10.5]
[1726033494251,3.795,131.75,131.71,6.09492533]
[1726033494454,3.795,131.75,131.7,14.35750535]
[1726033494654,3.795,131.75,131.71,6.09492533]
[1726033494855,3.795,131.75,131.7,14.35750535]
[1726033495055,3.795,131.75,131.71,6.09492698]
[1726033495255,3.795,131.75,131.7,14.35750535]
[1726033495457,3.7952,131.74,131.71,6.0948932]
[1726033495656,3.7952,131.74,131.7,14.35750535]
[1726033495859,3.7952,131.74,131.71,6.09488636]
[1726033496159,3.7952,131.74,131.7,14.35750535]
[1726033497749,3.7952,131.74,131.71,6.09492698]
[1726033498149,3.795,131.75,131.7,14.35750535]
[1726033498349,3.795,131.75,131.71,6.0948932]
[1726033498548,10.5,131.77,131.7,14.35750535]
[1726033498758,3.7951,131.74,131.71,6.09488636]
[1726033499055,3.7951,131.74,131.7,14.35750535]
[1726033499357,3.7951,131.74,131.71,6.09492014]
[1726033499558,3.7951,131.74,131.7,14.35750535]
[1726033499760,3.7951,131.74,131.71,6.09492698]
[1726033499959,3.7951,131.74,131.7,14.35750535]
[1726033500159,3.7951,131.74,131.71,6.09492014]
[1726033500360,3.7951,131.74,131.7,14.35750535]
[1726033500557,3.7951,131.74,131.6,2.7983]
[1726033500558,10.5,131.73,131.71,6.09492014]
[1726033500754,10.5,131.72,131.66,10.5]
[1726033500953,3.7961,131.71,131.67,6.09609067]
[1726033501263,11.9088,131.73,131.67,14.28729298]
[1726033501554,1.4088,131.73,131.7,10.5]
[1726033501755,3.7953,131.74,131.7,10.5]
[1726033502467,3.7953,131.74,131.7,14.2356774]
[1726033502761,1.4088,131.78,131.7,14.2356774]
[1726033502954,11.9088,131.78,131.72,10.5]
[1726033504059,11.9088,131.78,131.62,7.5972]
[1726033504060,11.9088,131.78,131.73,3.77259157]
[1726033504262,10.5,131.76,131.7,10.5]
[1726033504563,10.5,131.76,131.7,14.37508701]
[1726033506265,11.9088,131.78,131.7,14.37508701]
[1726033508168,1.4088,131.78,131.7,14.37508701]
[1726033508374,11.9088,131.78,131.7,14.37508701]
[1726033509470,10.5,131.76,131.7,3.87508701]
[1726033509672,10.5,131.76,131.7,10.5]
[1726033509868,1.4088,131.78,131.71,3.76784364]
[1726033510062,10.5,131.76,131.71,3.76784364]
[1726033510967,10.5,131.76,131.69,10.5]
[1726033511475,10.5,131.76,131.69,14.29327383]
[1726033520484,10.5,131.76,131.7,6.09614435]
[1726033520685,10.5,131.76,131.69,14.29327383]
[1726033520884,10.5,131.76,131.7,6.09613337]
[1726033521074,10.5,131.76,131.69,14.29327383]
[1726033521983,10.5,131.76,131.7,6.09613494]
[1726033522184,10.5,131.76,131.69,14.29327383]
[1726033522386,10.5,131.76,131.7,6.09613494]
[1726033522691,10.5,131.76,131.69,14.29327383]
[1726033523088,10.5,131.76,131.7,6.09612173]
[1726033523292,10.5,131.76,131.69,14.29327383]
[1726033523489,10.5,131.74,131.66,2.6852]
[1726033523791,10.5,131.74,131.68,10.5]
[1726033524095,3.7958,131.72,131.68,10.5]
[1726033524482,3.7958,131.72,131.68,14.21308177]
[1726033525194,3.7958,131.72,131.68,3.71308177]
[1726033525487,3.7961,131.71,131.68,10.5]
[1726033525693,3.7961,131.71,131.69,3.75218282]
[1726033526486,10.5,131.74,131.69,3.75218282]
[1726033526487,3.7958,131.72,131.69,3.75218282]
[1726033526996,3.7961,131.71,131.68,10.5]
[1726033527195,3.7961,131.71,131.67,6.09742128]
[1726033527389,3.7961,131.71,131.66,17.0444362]
[1726033527990,3.7961,131.71,131.66,15.7566362]
[1726033528791,1.3823,131.73,131.68,10.5]
[1726033535000,1.3823,131.73,131.69,10.5]
[1726033538803,10.5,131.76,131.69,10.5]
[1726033539802,1.3168,131.78,131.71,10.5]
[1726033540004,10.5,131.77,131.71,10.5]
[1726033542199,10.5,131.76,131.69,3.7964]
[1726033542400,10.5,131.76,131.69,14.2964]
[1726033543501,10.5,131.76,131.69,10.5]
[1726033543703,1.3168,131.78,131.68,10.5]
[1726033543704,10.5,131.75,131.68,10.5]
[1726033544496,10.5,131.75,131.69,6.09636981]
[1726033544705,10.5,131.75,131.68,10.5]
[1726033545006,10.5,131.75,131.69,6.09637665]
[1726033545307,10.5,131.75,131.68,10.5]
[1726033545601,10.5,131.75,131.69,6.09631361]
[1726033545813,10.5,131.75,131.68,10.5]
[1726033546106,10.5,131.75,131.69,6.09640826]
[1726033546407,10.5,131.75,131.68,10.5]
[1726033547802,10.5,131.74,131.68,10.5]
[1726033549210,10.5,131.74,131.67,1.3852]
[1726033549414,10.5,131.74,131.68,6.09723329]
[1726033549604,10.5,131.74,131.67,11.8852]
[1726033549804,10.5,131.74,131.68,6.09723963]
[1726033550104,10.5,131.74,131.67,11.8852]
[1726033550311,10.5,131.74,131.68,6.09723963]
[1726033550507,10.5,131.74,131.67,11.8852]
[1726033550808,10.5,131.74,131.68,6.09723963]
[1726033551008,10.5,131.74,131.67,11.8852]
[1726033551208,10.5,131.74,131.68,6.09726272]
[1726033551410,10.5,131.74,131.67,11.8852]
[1726033551603,10.5,131.74,131.68,6.09726272]
[1726033551802,10.5,131.74,131.67,11.8852]
[1726033552011,10.5,131.74,131.68,6.09726272]
[1726033552204,10.5,131.74,131.67,11.8852]
[1726033552404,10.5,131.74,131.68,6.09726272]
[1726033552604,10.5,131.74,131.67,11.8852]
[1726033552903,10.5,131.74,131.68,6.09726114]
[1726033553210,10.5,131.74,131.67,11.8852]
[1726033553413,10.5,131.74,131.68,6.09726114]
[1726033553705,10.5,131.74,131.67,11.8852]
[1726033553912,10.5,131.74,131.68,6.09726272]
[1726033554108,10.5,131.74,131.67,11.8852]
[1726033554314,10.5,131.74,131.68,6.09726234]
[1726033554501,10.5,131.74,131.67,11.8852]
[1726033554706,10.5,131.74,131.68,6.09726234]
[1726033555010,1.3588,131.73,131.67,10.5]